[Event "1st FIDE Olympiad DIS 2023"]
[Site "Belgrade"]
[Date "2023.02.03"]
[Round "5.2"]
[White "Mitrovic, Stefan"]
[Black "Babula, Milan"]
[Result "1/2-1/2"]
[ECO "E65"]
[WhiteElo "1807"]
[BlackElo "2107"]
[Annotator "TA"]
[PlyCount "50"]
[EventDate "2023.01.30"]
[EventType "team-tourn"]
[EventCountry "SRB"]
[SourceTitle "playchess.com"]
[Source "ChessBase"]
[SourceQuality "1"]
[WhiteTeam "Serbia"]
[BlackTeam "Czech Republic"]
[WhiteTeamCountry "SRB"]
[BlackTeamCountry "CZE"]
[TimeControl "40/5400+30:1800+30"]

{[%evp 15,50,27,41,2,0,0,56,50,71,55,62,48,103,96,131,86,77,98,130,71,77,75,79,37,43,0,10,2,56,7,12,36,82,0,0,0,5]} 1. d4 {[%emt 0:00:05]} Nf6 {[%emt 0:00:14]} 2. Nf3 {[%emt 0:00:16]} g6 {[%emt 0:00:15]} 3. g3 {[%emt 0:00:08]} Bg7 {[%emt 0:00:04]} 4. Bg2 {[%emt 0:00:11]} O-O {[%emt 0:00:02]} 5. O-O {[%emt 0:00:42]} Na6 {[%emt 0:01:47]} 6. c4 {[%emt 0:00:37]} c5 {[%emt 0:00:08]} 7. Nc3 {[%emt 0:00:26]} d6 {[%emt 0:00:36]} 8. h3 {[%emt 0:02:35]} Bd7 {[%emt 0:01:17]} 9. Be3 {[%emt 0:01:13] E65: King's Indian: Fianchetto: 6...c5 7 0-0 without d5 by White.} Qc8 {[%emt 0:06:31]} 10. Kh2 {[%emt 0:00:23]} Bc6 {[%emt 0:09:11]} (10... cxd4 $11 11. Bxd4 (11. Nxd4 Qxc4 12. Qb3 Qxb3 $11) 11... Qxc4) 11. d5 $14 {[%emt 0:02:03] White is slightly better.} Bd7 {[%emt 0:00:02]} 12. Qd2 {[%emt 0:00:11]} Nc7 {[%emt 0:03:11] [#]} 13. a4 $146 {[%emt 0:00:07]} ({Predecessor:} 13. Bh6 b5 14. Bxg7 Kxg7 15. cxb5 Nxb5 16. e4 Nxc3 17. Qxc3 Rb8 18. Rfe1 Qb7 19. b3 {½-½ Hohler,P (2059)-Babula,M (2175) Wch Seniors 65 29th 2019 (8)}) 13... b6 {[%emt 0:03:08]} (13... e5 $14) 14. Bh6 $16 {[%emt 0:02:08]} a6 {[%emt 0:00:13]} 15. Bxg7 {[%emt 0:00:55]} Kxg7 {[%emt 0:00:02]} 16. e4 {[%emt 0:04:35]} Nfe8 {[%emt 0:25:22]} 17. Nh4 {[%emt 0:09:53]} (17. e5 $142) 17... b5 {[%emt 0:02:58]} (17... Nf6 $2 18. f4 $18) 18. axb5 {[%emt 0:07:24]} (18. f4 {is more complex.} bxc4 19. f5 Rb8 20. Rae1) 18... axb5 {[%emt 0:00:02]} 19. cxb5 {[%emt 0:01:23][%cal Ob2b4]} (19. b3 {simplifies} Rxa1 20. Rxa1 Kg8 21. f4) 19... Nxb5 {[%emt 0:01:04]} 20. Nxb5 {[%emt 0:01:28]} Bxb5 {[%emt 0:01:32]} 21. Rfe1 {[%emt 0:04:41]} f6 {[%emt 0:05:58]} (21... Nf6 $11) 22. f4 {[%emt 0:02:33]} (22. Rxa8 $14 Qxa8 23. b4) 22... Rxa1 {[%emt 0:04:37]} 23. Rxa1 {[%emt 0:00:02]} Qb8 {[%emt 0:00:06] [#] Prevents Ra7.} (23... Nc7 $14 {was preferrable.}) 24. Qc3 {[%emt 0:01:56] White has more active pieces. The black rooks are badly placed.} (24. b4 $1 $16 {[%cal Rb4c5]}) 24... Nc7 {[%emt 0:08:49]} 25. b4 {[%emt 0:22:02]} cxb4 {[%emt 0:06:37] Weighted Error Value: White=0.22 (precise) /Black=0.25 (precise)} 1/2-1/2

[Event "1st FIDE Olympiad DIS 2023"]
[Site "Belgrade"]
[Date "2023.02.03"]
[Round "5.3"]
[White "Piekielny, Pawel"]
[Black "Kishan, Gangolli"]
[Result "1/2-1/2"]
[ECO "C07"]
[WhiteElo "2230"]
[BlackElo "2059"]
[Annotator "TA"]
[PlyCount "92"]
[EventDate "2023.01.30"]
[EventType "team-tourn"]
[EventCountry "SRB"]
[SourceTitle "playchess.com"]
[Source "ChessBase"]
[SourceQuality "1"]
[WhiteTeam "Poland"]
[BlackTeam "India"]
[WhiteTeamCountry "POL"]
[BlackTeamCountry "IND"]
[TimeControl "40/5400+30:1800+30"]

{[%evp 25,92,15,20,20,22,27,22,23,22,26,41,28,23,22,29,25,25,27,22,12,20,8,13,10,16,0,22,0,0,-18,18,13,49,20,22,12,55,0,0,0,14,0,27,-16,-20,-35,-41,-198,-192,-176,-187,-205,-181,-221,-219,-222,-126,-208,-159,-146,-132,-175,-80,-87,0,-195,0,-82,0]} 1. e4 {[%emt 0:00:02]} e6 {[%emt 0:00:40]} 2. d4 {[%emt 0:00:07]} d5 {[%emt 0:00:24]} 3. Nd2 {[%emt 0:00:15]} c5 {[%emt 0:00:26]} 4. exd5 {[%emt 0:00:20]} Qxd5 {[%emt 0:00:21]} 5. Ngf3 {[%emt 0:00:23]} cxd4 {[%emt 0:00:20]} 6. Bc4 {[%emt 0:00:21]} Qd6 {[%emt 0:00:31]} 7. O-O {[%emt 0:00:25]} Nf6 {[%emt 0:00:40]} 8. Nb3 {[%emt 0:00:34]} Nc6 {[%emt 0:00:28]} 9. Nbxd4 {[%emt 0:00:51]} Nxd4 {[%emt 0:00:51]} 10. Nxd4 {[%emt 0:00:10]} Be7 {[%emt 0:00:52]} 11. c3 {[%emt 0:05:09]} O-O {[%emt 0:01:39]} 12. Qf3 {[%emt 0:04:37]} Qc7 {[%emt 0:01:03]} 13. Bb3 {[%emt 0:03:49]} Bd7 {[%emt 0:05:09]} 14. Bg5 {[%emt 0:12:02] C07: French Tarrasch: 3...c5, 4 Ngf3 and 4 exd5 Qxd5.} Nd5 {[%emt 0:12:20] is the legacy move (14...a5).} 15. Bxe7 {[%emt 0:05:39]} Nxe7 {[%emt 0:00:19]} 16. Rad1 {[%emt 0:02:55] The position is equal.} (16. Rfe1 {looks sharper.} Bc6 17. Qh5 Qb6 18. Qg5) 16... Rad8 {[%emt 0:12:11]} 17. Rfe1 {[%emt 0:10:06] [#]} Ng6 $146 {[%emt 0:11:20]} ({Predecessor:} 17... a6 18. Qh5 Ng6 19. Bc2 Bc6 20. Nxc6 Qxc6 21. Qg5 Qc7 22. h3 Ne7 23. Qh4 Ng6 {½-½ Musil,M (2000)-Kovar,J (2000) CZE-chT B4 corr 2002}) 18. g3 {[%emt 0:05:45]} Ne7 {[%emt 0:19:24]} 19. Qe2 {[%emt 0:06:06]} Qb6 {[%emt 0:09:15]} 20. Rd2 {[%emt 0:09:47]} Nc6 {[%emt 0:03:25]} 21. Nf3 {[%emt 0:09:18]} Bc8 {[%emt 0:01:29]} 22. Rxd8 {[%emt 0:03:01]} Rxd8 {[%emt 0:00:37]} 23. h4 {[%emt 0:00:17]} Qc5 {[%emt 0:05:03]} 24. Bc2 {[%emt 0:00:52]} h6 {[%emt 0:01:07]} 25. Qe4 {[%emt 0:01:39] [#] Qh7+ is the strong threat.} (25. Rd1 {simplifies} Rxd1+ 26. Qxd1 e5 27. Nd2) 25... g6 {[%emt 0:01:47]} 26. Qf4 {[%emt 0:04:58]} Kg7 {[%emt 0:00:28]} 27. Be4 {[%emt 0:07:33]} Qd6 {[%emt 0:03:40]} (27... e5 {feels hotter.} 28. Qc1 f6 29. Rd1 Be6) 28. Qe3 {[%emt 0:00:37]} a6 {[%emt 0:02:14] [#]} 29. h5 $1 {[%emt 0:01:30]} gxh5 {[%emt 0:01:25]} 30. Bc2 {[%emt 0:01:27]} Qd5 {[%emt 0:01:13]} 31. Be4 {[%emt 0:01:32]} (31. Kg2 $14) 31... Qd6 $11 {[%emt 0:00:18]} 32. Bb1 {[%emt 0:02:01]} Qd5 {[%emt 0:00:26]} 33. b3 {[%emt 0:02:24][%mdl 1024] White has compensation.} Ne7 {[%emt 0:01:46]} 34. Bc2 {[%emt 0:00:00]} (34. c4 {is more complex.} Qd6 35. c5 Qc7 36. Qc3+) 34... Nf5 {[%emt 0:00:46]} 35. Qe2 {[%emt 0:00:51]} Qc5 {[%emt 0:00:30][%csl LRc3,LRg3]} 36. c4 $2 {[%emt 0:00:33]} (36. Bxf5 $15 Qxf5 37. Nd4) 36... Nxg3 $19 {[%emt 0:00:57]} 37. Qe5+ {[%emt 0:00:28]} Qxe5 {[%emt 0:00:08]} 38. Rxe5 {[%emt 0:00:26]} Nf5 {[%emt 0:00:22]} 39. Bxf5 {[%emt 0:00:04]} exf5 {[%emt 0:00:08][%mdl 4096] Endgame KRB-KRN} 40. Re7 {[%emt 0:00:21]} Rd7 {[%emt 0:00:59]} (40... Kf6 $19 41. Re3 b6) 41. Re8 {[%emt 0:30:49]} (41. Rxd7 $17 {might work better.} Bxd7 42. Ne5) 41... Rc7 {[%emt 0:30:12]} 42. Kh2 {[%emt 0:00:00]} Be6 {[%emt 0:00:36]} 43. Kg3 {[%emt 0:00:00]} Kf6 {[%emt 0:07:05]} (43... Rd7 $19 44. Rb8 Kf6) 44. Rh8 $17 {[%emt 0:00:00]} Kg7 {[%emt 0:00:00]} (44... b5 $17 45. cxb5 Kg7) 45. Re8 $1 $19 {[%emt 0:00:00]} Kf6 {[%emt 0:03:49]} (45... Rd7 $19 {has better winning chances.} 46. Rb8 Kf6) 46. Rh8 $17 {[%emt 0:00:00]} Kg7 {[%emt 0:00:00] Weighted Error Value: White=0.18 (very precise) /Black=0.22 (precise)} (46... b5 $17 47. cxb5 Kg7) 1/2-1/2

[Event "1st FIDE Olympiad DIS 2023"]
[Site "Belgrade"]
[Date "2023.02.03"]
[Round "5.3"]
[White "Valenta, Vit Vaclav"]
[Black "Bulatovic, Luka"]
[Result "1-0"]
[ECO "C14"]
[WhiteElo "2022"]
[BlackElo "1707"]
[Annotator "TA"]
[PlyCount "102"]
[EventDate "2023.01.30"]
[EventType "team-tourn"]
[EventCountry "SRB"]
[SourceTitle "playchess.com"]
[Source "ChessBase"]
[SourceQuality "1"]
[WhiteTeam "Czech Republic"]
[BlackTeam "Serbia"]
[WhiteTeamCountry "CZE"]
[BlackTeamCountry "SRB"]
[TimeControl "40/5400+30:1800+30"]

{[%evp 14,102,0,7,-2,-15,0,2,14,9,10,21,16,11,36,18,13,12,25,0,0,0,11,14,37,17,51,51,48,44,56,45,64,71,65,55,71,56,51,47,47,56,101,39,56,18,17,14,21,21,26,5,37,9,26,15,138,145,464,488,425,228,219,215,564,575,549,595,573,538,447,491,455,438,1345,1268,1333,1265,2256,1419,29967,29972,29980,29981,29981,29982,29982,29983,29985,29986,29990]} 1. e4 {[%emt 0:00:16]} e6 {[%emt 0:00:17]} 2. d4 {[%emt 0:00:11]} d5 {[%emt 0:00:24]} 3. Nc3 {[%emt 0:00:02]} Nf6 {[%emt 0:00:23]} 4. Bg5 {[%emt 0:01:03]} Be7 {[%emt 0:00:29]} 5. e5 {[%emt 0:00:42]} Nfd7 {[%emt 0:00:24]} 6. Bxe7 {[%emt 0:00:30]} Qxe7 {[%emt 0:00:22]} 7. Nf3 {[%emt 0:00:28]} a6 {[%emt 0:00:05]} 8. Qd2 {[%emt 0:02:34]} c5 {[%emt 0:00:37] C14: French: Classical System: 4 Bg5 Be7 main line.} 9. Ne2 {[%emt 0:03:45]} Nc6 {[%emt 0:03:02]} 10. c3 {[%emt 0:00:22]} cxd4 {[%emt 0:02:41] The position is equal.} 11. cxd4 {[%emt 0:00:07]} f6 {[%emt 0:03:55]} 12. exf6 {[%emt 0:01:42]} Nxf6 {[%emt 0:00:24]} 13. Ng3 {[%emt 0:02:54]} Qb4 {[%emt 0:08:08]} 14. Bd3 {[%emt 0:06:32]} Qxd2+ {[%emt 0:02:47]} 15. Kxd2 {[%emt 0:00:18]} Bd7 {[%emt 0:00:46]} 16. Rhe1 {[%emt 0:05:12]} O-O {[%emt 0:02:35]} 17. h3 {[%emt 0:04:39] Prevents Ng4.} Rac8 {[%emt 0:01:57]} 18. Rac1 {[%emt 0:02:36] [#]} Nb4 $146 {[%emt 0:03:03]} ({Predecessor:} 18... g6 19. Rc3 Ne8 20. Ke3 Nd6 21. b3 Nb4 22. Rxc8 Rxc8 23. Bb1 Nc2+ 24. Bxc2 Rxc2 {1-0 Stavnjak,L (2280)-Okicic,N BIH-chT2 Neum 2005 (1)}) 19. Bb1 {[%emt 0:01:11]} Rxc1 {[%emt 0:01:33]} 20. Rxc1 {[%emt 0:01:30]} Nc6 {[%emt 0:01:08]} 21. Ke3 {[%emt 0:09:46]} Rc8 {[%emt 0:02:34]} 22. Ne2 {[%emt 0:14:55]} Na5 {[%emt 0:02:25]} 23. Rxc8+ {[%emt 0:02:49]} Bxc8 {[%emt 0:00:28]} 24. b3 {[%emt 0:09:09] Prevents Nc4+.} Nc6 {[%emt 0:00:52]} 25. Nf4 {[%emt 0:01:01]} h6 {[%emt 0:06:38]} 26. Ng6 {[%emt 0:01:19]} Bd7 {[%emt 0:11:48]} 27. Nfe5 {[%emt 0:06:27]} Nxe5 {[%emt 0:02:47]} 28. Nxe5 $14 {[%emt 0:02:43][%mdl 4096] Endgame KBN-KBN} ({White should try} 28. dxe5 $16 Nh7 29. f4) 28... Kf8 {[%emt 0:01:31]} 29. f4 {[%emt 0:00:52]} Ke7 {[%emt 0:01:03]} 30. g4 {[%emt 0:00:43]} Ne8 {[%emt 0:03:09]} 31. h4 {[%emt 0:02:52]} Nd6 {[%emt 0:02:25]} 32. g5 {[%emt 0:02:11]} Nf7 {[%emt 0:02:19]} 33. Ng4 {[%emt 0:04:41]} Kf8 {[%emt 0:03:22]} 34. Bg6 {[%emt 0:00:43] [#] Threatens to win with Bxf7.} Nh8 {[%emt 0:01:34]} (34... Nd6 $1 $11) 35. Ne5 $16 {[%emt 0:01:19] White is more active.} Be8 {[%emt 0:02:56][%mdl 8192] A mistake that costs the game.} ({Weaker is} 35... Nxg6 36. Nxg6+ Kg8 37. f5 $16) (35... Ke7 $16) 36. Bxe8 $18 {[%emt 0:00:44]} Kxe8 {[%emt 0:00:00]} 37. gxh6 {[%emt 0:00:00]} (37. g6 $142) 37... gxh6 {[%emt 0:00:20] [#] KN-KN} 38. f5 $1 {[%emt 0:00:11]} Ke7 $2 {[%emt 0:08:14]} (38... Nf7 {is a better chance.}) 39. Kf4 {[%emt 0:00:57] Ng6+ would be deadly.} Kf6 {[%emt 0:02:45] Repels Ng6} 40. Ng4+ {[%emt 0:00:42]} Kg7 {[%emt 0:03:23]} 41. h5 {[%emt 0:37:14]} ({Not} 41. fxe6 Ng6+ 42. Kf5 Nxh4+ 43. Ke5 h5 $18) 41... exf5 {[%emt 0:02:50]} 42. Kxf5 {[%emt 0:00:20]} Nf7 {[%emt 0:00:46]} 43. Ke6 {[%emt 0:00:37] Wards off Nd6} Nd8+ {[%emt 0:01:36]} (43... Kf8 $142 44. Kxd5 Ke7) 44. Kxd5 {[%emt 0:00:06]} Nc6 {[%emt 0:00:30]} 45. a3 {[%emt 0:00:44]} Ne7+ {[%emt 0:00:28]} 46. Ke4 {[%emt 0:01:28] Black must now prevent d5.} Ng8 {[%emt 0:01:40]} 47. Ke5 {[%emt 0:00:37] White mates.} Kf7 {[%emt 0:00:22]} 48. d5 {[%emt 0:00:24][%cal Bd4d5,Bd5d6][%mdl 32]} Ke7 {[%emt 0:00:38]} 49. d6+ {[%emt 0:00:42]} Kd7 {[%emt 0:00:55]} 50. b4 {[%emt 0:01:06]} b5 {[%emt 0:02:07]} 51. Kd5 {[%emt 0:00:38]} Ke8 {[%emt 0:00:31] Weighted Error Value: White=0.11 (very precise) /Black=0.47} 1-0

[Event "1st FIDE Olympiad DIS 2023"]
[Site "Belgrade"]
[Date "2023.02.03"]
[Round "5.4"]
[White "Naveen, Kumar A."]
[Black "Stachanczyk, Jacek"]
[Result "1/2-1/2"]
[ECO "D00"]
[WhiteElo "2014"]
[BlackElo "2189"]
[Annotator "TA"]
[PlyCount "38"]
[EventDate "2023.01.30"]
[EventType "team-tourn"]
[EventCountry "SRB"]
[SourceTitle "playchess.com"]
[Source "ChessBase"]
[SourceQuality "1"]
[WhiteTeam "India"]
[BlackTeam "Poland"]
[WhiteTeamCountry "IND"]
[BlackTeamCountry "POL"]
[TimeControl "40/5400+30:1800+30"]

{[%evp 9,38,0,14,10,8,6,17,-13,5,5,7,-3,6,10,13,13,13,10,14,14,14,14,14,0,14,0,0,0,0,0,0]} 1. d4 {[%emt 0:00:07]} Nf6 {[%emt 0:00:12]} 2. Bf4 {[%emt 0:00:12]} d5 {[%emt 0:00:11]} 3. e3 {[%emt 0:00:12]} c5 {[%emt 0:00:09]} 4. c3 {[%emt 0:00:08]} Nc6 {[%emt 0:00:05]} 5. Nd2 {[%emt 0:00:08]} cxd4 {[%emt 0:00:34] The position is equal.} 6. exd4 {[%emt 0:00:12] D00: 1 d4 d5: Unusual lines.} Bf5 {[%emt 0:03:35]} 7. Ngf3 {[%emt 0:02:09]} e6 {[%emt 0:00:53]} 8. Ne5 {[%emt 0:10:23] Threatens to win with g4.} (8. Qb3 $5 {[%cal Rb3b7]} Qc8 9. Nh4 $11) 8... Nxe5 {[%emt 0:05:12]} 9. Bxe5 {[%emt 0:01:14]} a6 {[%emt 0:19:59]} 10. Qb3 {[%emt 0:08:11]} Qd7 {[%emt 0:12:40]} 11. Be2 {[%emt 0:10:03]} Be7 {[%emt 0:03:52]} 12. O-O {[%emt 0:03:45]} O-O {[%emt 0:00:04]} 13. h3 {[%emt 0:00:43] [#]} Ne4 $146 {[%emt 0:13:06]} ({Predecessor:} 13... h6 14. Qd1 b5 15. a3 a5 16. Bxf6 gxf6 17. g4 Bh7 18. f4 b4 19. cxb4 axb4 {0-1 Brunner,S (1918)-Von Herman,B (1991) GER-ch (Women) 2021 (4)}) 14. Nxe4 {[%emt 0:07:58]} Bxe4 {[%emt 0:00:07]} 15. a4 {[%emt 0:05:25]} Rfc8 {[%emt 0:07:03]} 16. Rfd1 {[%emt 0:20:53]} Bf8 {[%emt 0:02:19]} 17. Bd3 {[%emt 0:02:10]} Bxd3 {[%emt 0:00:32]} 18. Rxd3 {[%emt 0:00:03]} Bd6 {[%emt 0:00:33]} 19. Bxd6 {[%emt 0:07:23]} Qxd6 {[%emt 0:00:06] Not much happened in this game.   Weighted Error Value: White=0.07 (flawless) /Black=0.05 (flawless)} 1/2-1/2

[Event "1st FIDE Olympiad DIS 2023"]
[Site "Belgrade"]
[Date "2023.02.03"]
[Round "5.4"]
[White "Petrovic, Vladan"]
[Black "Ryvova, Anna"]
[Result "1/2-1/2"]
[ECO "B57"]
[WhiteElo "1818"]
[BlackElo "1823"]
[Annotator "NA COMBH"]
[PlyCount "58"]
[EventDate "2023.01.30"]
[EventType "team-tourn"]
[EventCountry "SRB"]
[SourceTitle "playchess.com"]
[Source "ChessBase"]
[SourceQuality "1"]
[WhiteTeam "Serbia"]
[BlackTeam "Czech Republic"]
[WhiteTeamCountry "SRB"]
[BlackTeamCountry "CZE"]
[TimeControl "40/5400+30:1800+30"]

1. e4 {[%emt 0:00:04]} c5 {[%emt 0:00:04]} 2. Nf3 {[%emt 0:00:10]} d6 {[%emt 0:00:03]} 3. d4 {[%emt 0:00:22]} cxd4 {[%emt 0:00:04]} 4. Nxd4 {[%emt 0:00:10]} Nf6 {[%emt 0:00:03]} 5. Nc3 {[%emt 0:00:08]} Nc6 $11 {[%emt 0:00:04]} 6. Bc4 {[%emt 0:03:12]} Qb6 {[%emt 0:00:25]} 7. Nf3 {[%emt 0:01:44]} a6 {[%emt 0:13:03]} 8. h3 {[%emt 0:02:55]} e6 {[%emt 0:10:17]} 9. Bb3 {[%emt 0:05:39]} Be7 {[%emt 0:02:58]} 10. Be3 {[%emt 0:00:45]} Qc7 {[%emt 0:00:43]} 11. O-O {[%emt 0:04:50]} O-O {[%emt 0:00:21]} 12. Re1 {[%emt 0:05:56]} b5 {[%emt 0:01:42]} 13. a3 {[%emt 0:00:10]} Bb7 {[%emt 0:01:19]} 14. Qd2 {[%emt 0:01:13]} Na5 {[%emt 0:02:36]} 15. Bf4 {[%emt 0:06:51]} Nxb3 {[%emt 0:01:28]} 16. cxb3 {[%emt 0:00:07]} Rfd8 {[%emt 0:03:21]} 17. Rac1 {[%emt 0:02:37]} Qd7 {[%emt 0:02:31]} 18. Qe3 {[%emt 0:05:52]} Rac8 {[%emt 0:04:20]} 19. Red1 {[%emt 0:03:43]} Qe8 {[%emt 0:08:35]} 20. Qb6 {[%emt 0:07:05]} Qc6 {[%emt 0:13:16]} 21. Qxc6 {[%emt 0:14:04]} Rxc6 {[%emt 0:01:11]} 22. e5 {[%emt 0:03:47]} dxe5 {[%emt 0:04:50]} 23. Rxd8+ {[%emt 0:01:00]} Bxd8 {[%emt 0:00:08]} 24. Rd1 {[%emt 0:00:53]} Be7 {[%emt 0:08:25]} 25. Nxe5 {[%emt 0:05:58]} Rc8 {[%emt 0:04:09]} 26. b4 {[%emt 0:02:43]} Nd5 {[%emt 0:01:28]} 27. Nxd5 {[%emt 0:02:48]} Bxd5 {[%emt 0:00:07]} 28. Rc1 {[%emt 0:00:45]} Rxc1+ {[%emt 0:00:33]} 29. Bxc1 {[%emt 0:00:02]} f6 {[%emt 0:06:11]} 1/2-1/2

[Event "1st FIDE Olympiad DIS 2023"]
[Site "Belgrade"]
[Date "2023.02.03"]
[Round "5.5"]
[White "Severino, Sander"]
[Black "Gruenfeld, Yehuda"]
[Result "1/2-1/2"]
[ECO "A33"]
[WhiteElo "2364"]
[BlackElo "2414"]
[Annotator "TA"]
[PlyCount "140"]
[EventDate "2023.01.30"]
[EventType "team-tourn"]
[EventCountry "SRB"]
[SourceTitle "playchess.com"]
[Source "ChessBase"]
[SourceQuality "1"]
[WhiteTeam "Philippines"]
[BlackTeam "Israel"]
[WhiteTeamCountry "PHI"]
[BlackTeamCountry "ISR"]
[TimeControl "40/5400+30:1800+30"]

{[%evp 14,140,16,0,0,0,0,0,0,0,0,0,0,-5,6,-3,17,13,12,0,0,0,12,11,4,4,6,0,0,-8,-7,-14,0,-4,-5,-14,0,0,0,0,0,0,24,35,34,22,107,119,125,111,112,117,128,127,150,139,146,103,257,247,233,216,219,197,457,495,1506,1468,1408,1280,1313,279,296,337,344,350,1784,1608,1497,996,11623,12820,7679,7114,12833,12834,12833,168,168,168,91,0,0,0,0,0,0,0,0,0,0,0,0,0,12840,12838,12837,12838,12838,12837,12836,0,0,0,0,0,0,0,0,0,0,0,0,0,0,0,0,0,0]} 1. c4 {[%emt 0:00:30]} Nf6 {[%emt 0:00:41]} 2. Nc3 {[%emt 0:00:05]} c5 {[%emt 0:01:35]} 3. Nf3 {[%emt 0:02:19]} Nc6 {[%emt 0:01:08]} 4. d4 {[%emt 0:02:08]} cxd4 {[%emt 0:00:05]} 5. Nxd4 {[%emt 0:00:07]} e6 {[%emt 0:00:48]} 6. a3 {[%emt 0:02:29]} Be7 {[%emt 0:01:12]} 7. e4 {[%emt 0:02:52]} O-O {[%emt 0:08:15]} 8. Be2 {[%emt 0:01:28]} d5 {[%emt 0:06:09] A33: Symmetrical English: 2 Nf3 Nf6 3 d4 cxd4 4 Nxd4 e6 5 Nc3 Nc6.} 9. exd5 {[%emt 0:14:04]} exd5 {[%emt 0:00:12]} 10. Nxc6 {[%emt 0:03:54]} bxc6 {[%emt 0:00:08]} 11. cxd5 {[%emt 0:02:55]} Nxd5 {[%emt 0:00:37]} 12. Nxd5 {[%emt 0:00:08]} cxd5 {[%emt 0:00:16]} 13. O-O {[%emt 0:00:37]} Bf6 {[%emt 0:00:15]} 14. Rb1 {[%emt 0:03:07] [#]} Bb7 $146 {[%emt 0:07:12]} ({Predecessor:} 14... d4 15. Bd3 Qd5 16. b4 Bb7 17. Qg4 Rfe8 18. Bd2 h5 {½-½ Gorshtein,I (2372)-Tanmay,C (2100) Sitges Sunway op 6th 2019 (4)}) 15. b4 {[%emt 0:02:44]} d4 {[%emt 0:03:39]} 16. Bf3 {[%emt 0:02:12]} Bxf3 {[%emt 0:00:44]} 17. Qxf3 {[%emt 0:00:05]} Qb6 {[%emt 0:00:28]} 18. Qd3 {[%emt 0:01:31]} Rac8 {[%emt 0:03:26]} 19. Bd2 {[%emt 0:00:11] Prevents Rc3} Qc6 {[%emt 0:00:43]} 20. Rb3 {[%emt 0:00:39]} Qc2 {[%emt 0:03:39]} 21. Qxc2 {[%emt 0:04:42]} Rxc2 {[%emt 0:00:08]} 22. Rd3 {[%emt 0:00:21]} Rfc8 {[%emt 0:00:32]} 23. g4 {[%emt 0:03:01]} h6 {[%emt 0:02:42]} 24. Kg2 {[%emt 0:03:21]} Ra2 {[%emt 0:00:42]} 25. Rc1 {[%emt 0:00:47]} Rxc1 {[%emt 0:02:42]} 26. Bxc1 $11 {[%emt 0:00:03][%mdl 4096] Endgame KRB-KRB} Kf8 {[%emt 0:00:59]} 27. Kf3 {[%emt 0:01:28]} (27. Bf4 Ke7 $15) 27... Ke7 {[%emt 0:00:03]} 28. Rd2 {[%emt 0:00:52]} Ra1 {[%emt 0:02:30]} 29. Bb2 {[%emt 0:00:07][%csl LRa1,LRd4]} Rh1 {[%emt 0:05:18]} (29... Ra2 $11 {keeps the balance.}) 30. Kg2 $16 {[%emt 0:00:31]} (30. Bxd4 Bxd4 31. Rxd4 Rxh2 $11) 30... Rb1 {[%emt 0:00:16]} 31. Bxd4 {[%emt 0:00:23]} Bxd4 {[%emt 0:00:09]} 32. Rxd4 {[%emt 0:00:03] KR-KR} Rb3 {[%emt 0:00:08]} 33. a4 {[%emt 0:00:12]} a6 {[%emt 0:00:26]} 34. h4 {[%emt 0:00:16]} Ke6 {[%emt 0:01:36]} 35. f3 {[%emt 0:00:16]} f5 $2 {[%emt 0:02:40]} (35... g5 $16) 36. Kg3 $18 {[%emt 0:02:42]} fxg4 {[%emt 0:00:09]} 37. Kxg4 {[%emt 0:00:42]} g6 {[%emt 0:00:07]} 38. Re4+ {[%emt 0:00:43]} Kd5 $2 {[%emt 0:00:55]} (38... Kd7 39. Kg3 Rb1) 39. Kg3 {[%emt 0:00:07]} Ra3 {[%emt 0:03:31] [#]} (39... Rb1 $142 40. a5 g5 41. hxg5 hxg5) 40. a5 $1 {[%emt 0:01:26]} Ra1 {[%emt 0:00:52]} 41. Re8 {[%emt 0:30:12]} Rg1+ {[%emt 0:32:36]} 42. Kh2 $2 {[%emt 0:00:19]} (42. Kf2 Rc1 43. Rh8) 42... Rc1 {[%emt 0:02:14]} 43. Rb8 {[%emt 0:00:44]} Rc4 {[%emt 0:01:09]} 44. Kg3 {[%emt 0:00:05]} Ke5 $2 {[%emt 0:00:16]} (44... Ke6 45. Rb6+ Kf5 46. Rxa6 Rxb4) 45. b5 {[%emt 0:06:40]} axb5 {[%emt 0:00:08]} 46. h5 {[%emt 0:00:11] Hoping for a6.} ({Weaker is} 46. Rxb5+ Kd4 47. Rb6 Rc1 $18) 46... gxh5 {[%emt 0:03:01]} 47. Rxb5+ {[%emt 0:00:04]} Kf6 {[%emt 0:00:08]} 48. Rxh5 {[%emt 0:00:07]} Kg6 {[%emt 0:00:51]} 49. Rh4 {[%emt 0:00:02]} Rc6 {[%emt 0:01:09]} 50. Ra4 $2 {[%emt 0:00:02]} (50. Rb4 Kg7 51. Rb7+ Kf8 52. Ra7) 50... Ra6 {[%emt 0:00:12]} 51. Kg4 {[%emt 0:00:29]} Kf6 {[%emt 0:01:22]} 52. Rf4+ {[%emt 0:01:57]} (52. Kf4 $16) 52... Kg6 $1 $11 {[%emt 0:00:59]} 53. Rf5 {[%emt 0:01:06]} Rc6 {[%emt 0:01:04]} 54. Rb5 {[%emt 0:00:07]} Rc4+ {[%emt 0:00:01]} 55. f4 {[%emt 0:00:09] Threatens to win with Rb6+.} Ra4 {[%emt 0:00:02]} 56. Rb6+ {[%emt 0:00:10]} Kg7 {[%emt 0:00:09]} 57. a6 {[%emt 0:00:10] aiming for Kf5.} Ra5 {[%emt 0:00:13]} 58. f5 {[%emt 0:00:28]} Ra1 $2 {[%emt 0:01:30][%mdl 8192]} (58... Ra4+ $11 59. Kh5 Ra5) 59. Rg6+ {[%emt 0:00:22]} Kh7 {[%emt 0:00:09]} 60. Rd6 {[%emt 0:01:25]} Kg7 {[%emt 0:00:11] [#]} 61. Kf4 $1 {[%emt 0:01:06]} Ra5 {[%emt 0:03:45]} 62. Ke4 $2 {[%emt 0:09:45]} ({White should try} 62. Rg6+ $18 Kh7 63. Rb6) 62... h5 {[%emt 0:03:38][%cal Bh6h5,Bh5h4,Bh4h3][%mdl 32] The position is equal.} 63. Kf4 {[%emt 0:02:35]} h4 {[%emt 0:00:16]} 64. Kg5 {[%emt 0:00:08]} h3 {[%emt 0:00:05]} 65. Rd7+ {[%emt 0:00:18]} Kf8 $1 {[%emt 0:00:26]} 66. Kg6 {[%emt 0:00:28]} (66. a7 $5 h2 $8 67. Rh7 Rxa7 68. Rxh2 $11 (68. Rh8+ Kg7 $11)) 66... h2 {[%emt 0:00:15]} 67. Rh7 {[%emt 0:00:13]} Rxa6+ {[%emt 0:00:28]} 68. f6 {[%emt 0:00:09]} Kg8 {[%emt 0:00:06][%cal Oa6f6] And now ...Rxf6+! would win.} 69. Rxh2 {[%emt 0:00:10]} Ra7 {[%emt 0:00:06]} 70. Rd2 {[%emt 0:03:32][%cal Rd2d8]} Rg7+ $1 {[%emt 0:00:11] Weighted Error Value: White=0.37/Black=0.18 (very precise)} 1/2-1/2